Cogmind - Beta 14 @@@ ROGUE MODE // 2025.03.20 @ 14:55:41 Player: wav31355 Result: Self-destructed Performance ------------- Evolutions (1) 500 Regions Visited (3) 600 Robots Destroyed (42) 210 Value Destroyed (785) 785 Prototype IDs (0) 0 Alien Tech Used (0) 0 Bonus (0) 0 TOTAL SCORE: 2095 Bonus ------- None Cogmind --------- Core Integrity 293/400 Matter 275/300 Energy 12/100 System Corruption 4% Temperature Hot (216) Movement Walking (190) Ox1 Location -9/Mines Parts ------- > --- POWER (1) -------- (None) > --- PROPULSION (4) --- Aluminum Leg Aluminum Leg > --- UTILITY (2) ------ Large Storage Unit Sensor Array > --- WEAPON (2) ------- Particle Cannon > --- INVENTORY (15) --- Light Ion Engine Aluminum Leg Heat Sink Heat Sink Improved Heat Sink Medium Storage Unit Large Matter Pod (150) Signal Interpreter Hacking Suite Hacking Suite Particle Gun Beam Cannon Assault Rifle Heavy Assault Rifle Peak State ------------ > --- POWER ------------ Light Nuclear Core > --- PROPULSION ------- Aluminum Leg Aluminum Leg Aluminum Leg Aluminum Leg > --- UTILITY ---------- Medium Storage Unit Sensor Array > --- WEAPON ----------- Particle Cannon Assault Rifle > --- INVENTORY -------- Ion Engine Improved Heat Sink Large Storage Unit Large Matter Pod Hacking Suite Hacking Suite Particle Gun Beam Cannon [Rating: 13] Favorites ----------- Power Ion Engine Engine Ion Engine Power Core Light Nuclear Core Propulsion Aluminum Leg Treads Light Treads Leg Aluminum Leg Utility Medium Storage Unit Device Sensor Array Storage Medium Storage Unit Weapon Particle Cannon Energy Gun Particle Gun Energy Cannon Particle Cannon Ballistic Gun Assault Rifle Build | -11 -10 -9 -9 ------- Run | Yrd Mat Mat Min Slots Evolved 2 | . . 2 . Power . | . . . . Propulsion 2 | . . 2 . Utility . | . . . . Weapon . | . . . . Parts Attached 37 | 8 19 10 . Power 5 | 1 3 1 . Engine 4 | 1 2 1 . Core 1 | . 1 . . Reactor . | . . . . Propulsion 19 | 3 10 6 . Treads 5 | 2 1 2 . Leg 14 | 1 9 4 . Wheel . | . . . . Hover . | . . . . Flight . | . . . . Utility 5 | 2 2 1 . Device 2 | 1 1 . . Storage 3 | 1 1 1 . Processor . | . . . . Hackware . | . . . . Protection . | . . . . Artifact . | . . . . Weapon 8 | 2 4 2 . Energy Gun 1 | . 1 . . Energy Cannon 3 | . 3 . . Ballistic Gun 4 | 2 . 2 . Ballistic Cannon . | . . . . Launcher . | . . . . Special Weapon . | . . . . Impact Weapon . | . . . . Slashing Weapon . | . . . . Piercing Weapon . | . . . . Special Melee Weapon . | . . . . Unidentified Prototypes . | . . . . Parts Lost 5 | . . 1 4 Power 2 | . . 1 1 Propulsion 2 | . . . 2 Utility . | . . . . Weapon 1 | . . . 1 Highest Loss Streak 4 | . . 1 4 To Critical Strikes . | . . . . Average Slot Usage (%) 99 | . 99 99 82 Engine 7 | . 7 8 3 Core 5 | . 6 2 . Treads 7 | . 8 2 . Leg 24 | . 19 41 36 Device 13 | . 13 11 11 Storage 13 | . 14 11 11 Energy Cannon 12 | . 12 11 11 Ballistic Gun 13 | . 14 11 9 Peak Build Rating 13 | 7 11 13 13 Average Rating 9 | 5 9 12 11 On Entrance 7 | . 7 11 13 Naked Turns . | . . . . Heaviest Build 33 | 14 22 33 28 Greatest Support 40 | 40 40 40 40 Greatest Overweight (x) 2 | 2 1 1 . Average Overweight (x) . | . . . . Largest Inventory Capacity 15 | 8 10 15 15 Average Capacity 10 | 7 9 14 15 Most Carried 15 | 7 10 15 14 Average Carried 10 | 5 9 12 14 Final Capacity 15 | 8 10 15 15 Final Carried 14 | 7 10 14 14 Class Distribution -------------------- 56% | Mutant 43% | Scavenger-Mutant Dominant Class ---------------- Mutant | -10/Materials Scavenger-Mutant | -9/Materials Mutant | -9/Mines Resources | -11 -10 -9 -9 ----------- Run | Yrd Mat Mat Min Matter Collected 1037 | 324 504 158 51 Remotely . | . . . . Salvage Created 1487 | 142 772 382 191 Parts 105 | 5 61 31 8 Haulers Intercepted 1 | . 1 . . Recyclers Shooed 3 | 1 . 2 . Parts Field Recycled . | . . . . Retrieved Matter . | . . . . Parts Self-Destructed . | . . . . Prevented . | . . . . Kills | -11 -10 -9 -9 ------- Run | Yrd Mat Mat Min Combat Hostiles Destroyed 29 | . 11 11 7 Guns 12 | . 4 5 3 Cannons 17 | . 7 6 4 Classes Destroyed 11 | 2 7 1 1 Worker 2 | . 2 . . Builder 2 | . 2 . . Tunneler 2 | 2 . . . Hauler 1 | . 1 . . Recycler 5 | 1 2 2 . Operator 2 | . 2 . . Watcher 3 | . 3 . . Swarmer 11 | . 3 8 . Grunt 12 | . 8 1 3 Sentry 2 | . . 2 . Assembled 4 | . . . 4 Best Kill Streak 8 | 3 6 8 4 Combat Bots Only 8 | . 3 8 4 Max Kills in Single Turn 2 | 1 2 2 1 Gunslinging . | . . . . Exploded . | . . . . Melee . | . . . . Uniques/NPCs Destroyed . | . . . . Combat | -11 -10 -9 -9 -------- Run | Yrd Mat Mat Min Hostile Shots Fired 145 | . 50 41 54 Missed 26 | . 7 8 11 Damage Taken 1350 | . 462 309 579 Core 161 | . 54 46 61 Absorbed by Shields . | . . . . Core Remaining (%) 89 | 100 78 . . Volleys Fired 107 | 11 53 24 19 Largest 2 | 2 2 2 2 Hottest 91 | 40 88 91 91 Shots Fired 214 | 22 106 48 38 Gun 123 | 22 58 24 19 Cannon 91 | . 48 24 19 Launcher . | . . . . Special . | . . . . Kinetic 123 | 22 58 24 19 Thermal 91 | . 48 24 19 Explosive . | . . . . Electromagnetic . | . . . . Robot Hit Streak 9 | 7 7 9 9 Robot Miss Streak 3 | 3 3 2 3 Penetration Max . | . . . . Secondary Targets . | . . . . Shots Hit Robots 122 | 13 53 31 25 Core Hits 58 | 5 28 14 11 Critical Kills . | . . . . Critical Parts Destroyed . | . . . . Critical Strikes . | . . . . Melee Attacks . | . . . . Impact . | . . . . Slashing . | . . . . Piercing . | . . . . Sneak Attacks . | . . . . Combat Hostiles . | . . . . Follow-up Attacks . | . . . . Damage Inflicted 2206 | 153 948 609 496 Guns 869 | 153 328 201 187 Cannons 1337 | . 620 408 309 Explosions . | . . . . Melee . | . . . . Ramming . | . . . . Kinetic 869 | 153 328 201 187 Thermal 1337 | . 620 408 309 Explosive . | . . . . Electromagnetic . | . . . . Impact . | . . . . Slashing . | . . . . Piercing . | . . . . Highest Corruption 4 | . . . 4 Average Corruption 4 | . . . 4 Corruption Purged . | . . . . Corruption Blocked . | . . . . Effects 1 | . . . 1 Data Loss (minor) 1 | . . . 1 Overload Shots . | . . . . Overflow Damage 26 | . 12 14 . Projectiles 26 | . 12 14 . Explosions . | . . . . Melee . | . . . . Knockbacks . | . . . . Impact . | . . . . Kinetic . | . . . . Secondary . | . . . . Self-Inflicted Damage . | . . . . Shots . | . . . . Rammed . | . . . . Targets Rammed . | . . . . Kicked . | . . . . Crushed . | . . . . Highest Temperature 324 | . 321 273 324 Average Temperature 101 | . 85 95 165 Received Heat Transfer 433 | . 195 24 214 Effects 1 | . 1 . . Energy Bleed 1 | . 1 . . Siege Activations . | . . . . Robots Corrupted . | . . . . Combat Hostiles . | . . . . Parts Fried . | . . . . Impact Corruptions . | . . . . Robots Melted . | . . . . Combat Hostiles . | . . . . Parts Melted 2 | . . 1 1 Heat Transferred 2405 | . 1110 740 555 Parts Sabotaged . | . . . . Parts Stolen . | . . . . Parts Stripped . | . . . . Power Chain Reactions . | . . . . Alert | -11 -10 -9 -9 ------- Run | Yrd Mat Mat Min Peak Influence 346 | 15 196 346 136 Initial 76 | . 9 10 76 Average 84 | 6 64 193 120 Maximum Alert Level 1 | . . 1 . Low Security (%) 90 | 100 100 44 100 Level 1 9 | . . 55 . Level 2 . | . . . . Level 3 . | . . . . Level 4 . | . . . . Level 5 . | . . . . High Security . | . . . . Max Security . | . . . . Squads Dispatched 4 | . 2 2 . Investigation 2 | . 1 1 . Extermination . | . . . . Reinforcement 2 | . 1 1 . Assault . | . . . . Garrison . | . . . . Intercept . | . . . . Searches Triggered . | . . . . Construction Impeded . | . . . . Haulers Reinforced . | . . . . Active Scanning Responses . | . . . . Cargo Convoy Interrupts . | . . . . Stealth | -11 -10 -9 -9 --------- Run | Yrd Mat Mat Min Distress Signals 5 | . 1 4 . Communications Jammed . | . . . . Distress Signals . | . . . . Times Spotted 52 | . 20 20 12 Peak Tracking Total 8 | . 4 8 5 Tactical Retreats 2 | . 1 1 . Traps | -11 -10 -9 -9 ------- Run | Yrd Mat Mat Min Traps Triggered . | . . . . Indirectly . | . . . . Trap Hack Attempts . | . . . . Triggered . | . . . . Disarmed . | . . . . Reprogrammed . | . . . . Reused . | . . . . Traps Extracted . | . . . . Installed . | . . . . Triggered . | . . . . Machines | -11 -10 -9 -9 ---------- Run | Yrd Mat Mat Min Machines Disabled . | . . . . Max in Single Turn . | . . . . Machines Repaired . | . . . . Machines Dismantled . | . . . . Machines Sabotaged . | . . . . Overloaded Fab Kills . | . . . . Hacking | -11 -10 -9 -9 --------- Run | Yrd Mat Mat Min Machines Accessed 9 | . 6 3 . Terminals 8 | . 5 3 . Fabricators . | . . . . Repair Stations . | . . . . Recycling Units 1 | . 1 . . Scanalyzers . | . . . . Garrison Access . | . . . . Total Hacks 22 | . 13 9 . Successful 7 | . 6 1 . Failed 15 | . 7 8 . Catastrophic 5 | . 3 2 . Database Lockouts . | . . . . Manual 9 | . 5 4 . Terminals 21 | . 12 9 . Fabricators . | . . . . Repair Stations . | . . . . Recycling Units 1 | . 1 . . Scanalyzers . | . . . . Garrison Access . | . . . . Terminal Hacks 6 | . 5 1 . Part Schematic 1 | . 1 . . Robot Schematic 1 | . 1 . . Unreport Threat 3 | . 2 1 . Zone Layout 1 | . 1 . . Fabricator Hacks . | . . . . Repair Station Hacks . | . . . . Recycling Unit Hacks 1 | . 1 . . Report Inventory 1 | . 1 . . Scanalyzer . | . . . . Garrison Access Hacks . | . . . . Unauthorized Hacks . | . . . . Terminals . | . . . . Fabricators . | . . . . Repair Stations . | . . . . Recycling Units . | . . . . Scanalyzers . | . . . . Garrison Access . | . . . . Data Cores Recovered . | . . . . Used . | . . . . Hacking Detections 8 | . 5 3 . Full Trace Events 2 | . 1 1 . Feedback Events . | . . . . Feedback Blocked . | . . . . Robot Schematics Acquired 1 | . 1 . . Robots Built . | . . . . Authchips . | . . . . Time . | . . . . Total Robot Build Rating . | . . . . Part Schematics Acquired 1 | . 1 . . Parts Built . | . . . . Authchips . | . . . . Time . | . . . . Total Part Build Rating . | . . . . Parts Repaired . | . . . . Time . | . . . . Parts Recycled . | . . . . Recycled Matter . | . . . . Retrieved Matter . | . . . . Retrieved Components . | . . . . Parts Scanalyzed . | . . . . Part Schematics Acquired . | . . . . Parts Damaged . | . . . . Bothacking | -11 -10 -9 -9 ------------ Run | Yrd Mat Mat Min Used RIF Installer . | . . . . Robots Hacked . | . . . . Non-combat . | . . . . Combat . | . . . . Robot Hacks Applied . | . . . . Relay Couplers Released . | . . . . Fabnet Peak Effective % . | . . . . Robots Rewired . | . . . . Allies Hacked . | . . . . Hacks Repelled . | . . . . Allies | -11 -10 -9 -9 -------- Run | Yrd Mat Mat Min Total Allies . | . . . . Largest Group . | . . . . Highest-Rated Group . | . . . . Highest-Rated Ally . | . . . . Total Orders . | . . . . Ally Attacks . | . . . . Total Damage . | . . . . Kills . | . . . . Allies Corrupted . | . . . . Allies Melted . | . . . . Intel | -11 -10 -9 -9 ------- Run | Yrd Mat Mat Min Robot Analysis Total . | . . . . Derelict Logs Recovered . | . . . . Drone Launches . | . . . . Drone Recoveries . | . . . . Exploration | -11 -10 -9 -9 ------------- Run | Yrd Mat Mat Min Turns Passed 2079 | 189 1454 369 67 Spaces Moved 987 | 90 695 191 11 Core 5 | 5 . . . Treads 322 | 85 226 11 . Legs 660 | . 469 180 11 Wheels . | . . . . Hover . | . . . . Flight . | . . . . Fastest Speed 50 | 50 120 120 120 Average Speed 153 | 155 162 122 120 Slowest Speed 190 | 160 190 190 120 Overloaded Moves . | . . . . Propulsion Burnouts . | . . . . Robots Hopped . | . . . . Cave-ins Triggered . | . . . . Exploration Rate (%) 32 | 5 98 22 5 Regions Visited 3 Branch Regions 1 Pre-discovered Areas . | . . . . Known Exits Taken . | . . . . Unknown Exits Taken 3 | 1 1 1 . Scrap Searched . | . . . . Spaces Dug . | . . . . Terrain Destroyed . | . . . . Melee . | . . . . Projectile . | . . . . AOE . | . . . . Terrain Rammed . | . . . . Walls Destroyed . | . . . . Machines Disabled . | . . . . Actions | -11 -10 -9 -9 --------- Run | Yrd Mat Mat Min Total 1352 | 116 927 279 30 Wait 155 | . 112 43 . Move 984 | 89 694 190 11 Hop . | . . . . Pick Up 37 | 8 22 7 . Fast Attach 10 | 6 1 3 . Attach 5 | 1 1 3 . Detach . | . . . . Swap 22 | 1 17 4 . Drop 32 | . 27 5 . Fire 107 | 11 53 24 19 Melee . | . . . . Ram . | . . . . Kick . | . . . . Crush . | . . . . Escape Stasis . | . . . . Rewire . | . . . . Trap . | . . . . Miscellaneous . | . . . . Route ------- -11/Scrapyard -10/Materials (discovered 3 exits: *Mat x2 / [*Min]) -9/Materials (discovered 2 exits: [*Min x2]) -9/Mines History --------- Turn | Location | Event 20 | -11/Scrapyard | Discovered new exit (range 16) 190 | -11/Scrapyard | Entered Materials 321 | -10/Materials | Build established: Mutant 589 | -10/Materials | Discovered new exit (range 10) 806 | -10/Materials | Discovered new exit (range 15) 1298 | -10/Materials | Build established: Scavenger-Mutant 1510 | -10/Materials | Discovered new exit (range 9) 1644 | -10/Materials | Entered another Materials area 1644 | -9/Materials | Evolved 2 slots: Propulsion x2 1674 | -9/Materials | Discovered new exit (range 16) 1817 | -9/Materials | Destroyed 8 combat bots 1964 | -9/Materials | Discovered new exit (range 6) 2013 | -9/Materials | Entered Mines 2014 | -9/Mines | Assembled infested the area 2080 | -9/Mines | Self-destructed Last Messages --------------- GOAL=ESCAPE Something is scanning the area. ALERT: Infestation in the mines, dispatching Demolisher response squad. G-34 Mercenary destroyed. Aluminum Leg melted. G-47 Trooper destroyed. Ion Engine destroyed. G-34 Mercenary destroyed. Acquired 51 matter. Aluminum Leg destroyed. System corrupted by crushing effect (+4). Knocked back. as-90255 destroyed. as-21435 destroyed. as-14330 destroyed. System corrupted: Component data lost. as-72906 destroyed. Aluminum Leg destroyed. Autogun destroyed. Map ----- +----------------------------------------------------+ | ????????????????????????????????????? | | ????????????????????????????????????? | | ????????????????????????????????????? | | ????????????????????????????????????? | | ????????????????????????????????????? | | ????????????????????????????????????? | | ????????????????????????????????????? | | ????????????????????????????????????? | | ????????????????????????????????????? | | ????????????????????????????????????? | | ????????????????????????????????????? | | ????????????????????????????????????? | | ????????????????????????????????????? | | ???????????####?????????????????????? | | ??????????## ##????????????????????? | | ???????#### = #????????????????????? | | ??????## [%= #????????????????????? | | ??????# [%![ #????????????????????? | | ?????## %!#????????#???????????? | | ????## * #?????? ##??????????? | | ????# ##???## ???????????? | | ????# #??? ??????????????? | | ????# ###a #????????????????? | | ????## aa #????????????????? | | ?????#### a%a #????????????????? | | ????????## @%%#####????????????????? | | ?????????# ##????????????????????? | | ?????????## ##?????????????????????? | | ??????????####??????????????????????? | | ????????????????????????????????????? | | ????????????????????????????????????? | | ????????????????????????????????????? | | ????????????????????????????????????? | | ????????????????????????????????????? | | ????????????????????????????????????? | | | | | | | | | | | | | | | | | | | | | | | | | | | | | | | +----------------------------------------------------+ Best States ------------- Heat Dissipation 28 Energy Generation 14 Energy Capacity 250 Matter Stores 300 Matter Capacity 300 Sight Range 16 Robot Scan Range 14 Terrain Scan Density 10 Evasion (%) 55 Recoil Reduction 2 Item Schematics ----------------- Huge Storage Unit | -10/Materials | Hacked Robot Schematics ------------------ M-13 Machinist | -10/Materials | Hacked Fabricated ------------ Nothing Alien Tech Used ----------------- None Achievements -------------- None Challenges ------------ None Game ------ Seed AdvancedStorageDriver Manual? 0 Play Time 00:29:16 Cumulative 60.8 hours Start 2025.03.20 @ 14:19:26 End 2025.03.20 @ 14:55:41 Sessions 1 Manual Loads 0 Difficulty Rogue Special Mode None Game No. 17 Rogue 17 Adventurer 0 Explorer 0 Win Type - Total 2 Types 2/0/0/0/0/0/0/0/0 Lore% 45 Gallery% 42 Achievement% 35 Wizard Run 0 Options --------- Layout 1 ASCII 0 Keyboard 0 Movement Mouse Keybinds 0 Fullscreen 1 Font 18/SmallcapsGlow Map View 50x40 Zoom Use 0% Tactical HUD 0 Map Filters NONE Filters NONE Steam 1 RUN: 3967a2ea-e9e7-4c80-b04a-f7beec800ced